bitfinex-derivatives/quotes_SOLF0:USTF0_20251002
["timestamp","ask_amount","ask_price","bid_price","bid_amount"]
[1759395068082,3.11820582,224.56,224.54,7.36]
[1759395068289,7.73,224.57,224.54,7.36]
[1759395068490,3.11843732,224.56,224.54,7.36]
[1759395068690,7.73,224.57,224.54,7.36]
[1759395068890,3.11843732,224.56,224.54,7.36]
[1759395069090,7.73,224.57,224.54,7.36]
[1759395069292,3.1186654,224.56,224.54,7.36]
[1759395069491,7.73,224.57,224.54,7.36]
[1759395069691,3.11870384,224.56,224.54,7.36]
[1759395069888,7.73,224.57,224.54,7.36]
[1759395070192,3.11870384,224.56,224.54,7.36]
[1759395070391,3.11870384,224.55,224.54,7.36]
[1759395087301,7.14,224.54,224.45,7.32]
[1759395087506,7.14,224.52,224.45,7.32]
[1759395087702,7.957933,224.51,224.45,7.32]
[1759395087902,15.097933,224.5,224.47,7.32]
[1759395088103,4.23171741,224.49,224.47,7.32]
[1759395088304,7.14,224.5,224.47,7.32]
[1759395088504,3.14356264,224.49,224.47,7.32]
[1759395088805,7.14,224.5,224.47,7.32]
[1759395089006,3.14356264,224.49,224.47,7.32]
[1759395089201,7.14,224.5,224.47,7.32]
[1759395089501,3.14210087,224.49,224.47,7.32]
[1759395089706,7.14,224.5,224.47,7.32]
[1759395089904,3.14210087,224.49,224.47,7.32]
[1759395090107,7.14,224.5,224.47,7.32]
[1759395090304,7.14,224.51,224.47,7.32]
[1759395090502,11.39401773,224.5,224.47,7.32]
[1759395090807,7.14,224.48,224.45,7.32]
[1759395091196,7.14,224.48,224.44,5.37769605]
[1759395091602,7.14,224.48,224.45,7.32]
[1759395091802,7.14,224.48,224.44,5.37769605]
[1759395092403,7.14,224.48,224.45,7.32]
[1759395092604,7.14,224.51,224.45,7.32]
[1759395092805,4.2520905,224.5,224.45,7.32]
[1759395093001,7.14,224.48,224.45,7.32]
[1759395093207,7.14,224.51,224.45,7.32]
[1759395093512,4.25107971,224.5,224.45,7.32]
[1759395093711,7.14,224.48,224.45,7.32]
[1759395094102,1.11312626,224.49,224.45,7.32]
[1759395094308,7.14,224.48,224.45,7.32]
[1759395095613,3.13613639,224.49,224.45,7.32]
[1759395095804,2.48303857,224.5,224.45,7.32]
[1759395096007,7.14,224.48,224.45,7.32]
[1759395096211,7.14,224.49,224.42,11.3282]
[1759395096404,5.62928853,224.48,224.42,7.32]
[1759395096608,3.14624996,224.47,224.42,7.32]
[1759395096814,7.14,224.45,224.42,7.32]
[1759395097014,1.11314252,224.47,224.42,7.32]
[1759395097212,7.14,224.45,224.42,7.32]
[1759395097415,3.14638273,224.44,224.38,7.32]
[1759395097616,3.14546922,224.43,224.38,7.32]
[1759395097814,1.11334801,224.44,224.38,7.32]
[1759395098014,3.14553234,224.43,224.38,7.32]
[1759395098214,7.14,224.42,224.38,7.32]
[1759395098713,7.14,224.41,224.38,7.32]
[1759395099109,7.14,224.41,224.39,7.32]
[1759395100610,1.36989605,224.44,224.38,4.0088]
[1759395101012,7.14,224.43,224.38,4.0088]
[1759395101514,7.14,224.43,224.36,11.3293]
[1759395102720,1.36989605,224.42,224.36,11.3293]
[1759395102908,7.14,224.41,224.37,7.32]
[1759395103111,1.36989605,224.42,224.37,7.32]
[1759395103307,7.14,224.41,224.37,7.32]
[1759395103815,1.36989605,224.42,224.37,7.32]
[1759395104619,7.14,224.44,224.37,1.36989605]
[1759395104917,7.14,224.48,224.42,7.32]
[1759395105312,7.14,224.48,224.45,4.0076]
[1759395105514,7.14,224.48,224.45,11.3276]
[1759395106215,7.14,224.48,224.39,1.36989605]
[1759395107019,7.14,224.48,224.4,7.32]
[1759395107717,7.14,224.48,224.41,4.0084]
[1759395108117,10.27337144,224.48,224.41,4.0084]
[1759395110223,14.28067144,224.48,224.41,4.0084]
[1759395110418,11.1473,224.48,224.41,4.0084]
[1759395110917,11.1473,224.48,224.4,7.32]
[1759395111122,7.14,224.46,224.4,7.32]
[1759395112623,11.1476,224.46,224.4,7.32]
[1759395113524,7.14,224.46,224.4,11.3285]
[1759395114924,4.0076,224.46,224.4,11.3285]
[1759395115123,7.86,224.45,224.4,11.3285]
[1759395115325,7.86,224.45,224.42,7.55]
[1759395117130,4.0072,224.48,224.42,7.55]
[1759395117332,7.86,224.46,224.42,7.55]
[1759395117830,4.0075,224.47,224.42,7.55]
[1759395118036,7.86,224.48,224.42,11.5582]
[1759395118231,7.86,224.48,224.42,7.55]
[1759395119423,4.24615864,224.5,224.44,7.55]
[1759395120331,8.25305864,224.5,224.44,11.5578]
[1759395121128,4.0069,224.5,224.45,7.55]
[1759395121431,7.86,224.49,224.45,7.55]
[1759395121834,7.86,224.48,224.45,7.55]
[1759395122035,4.24615864,224.49,224.45,7.55]
[1759395122234,4.0069,224.5,224.44,11.5578]
[1759395122836,7.97084447,224.51,224.44,7.55]
[1759395123025,7.86,224.5,224.44,7.55]
[1759395123229,15.83084447,224.5,224.44,7.55]
[1759395123429,7.86,224.48,224.44,7.55]
[1759395123629,3.13281638,224.48,224.44,7.55]
[1759395123831,7.86,224.5,224.44,7.55]
[1759395124034,15.83239097,224.5,224.44,7.55]
[1759395124234,4.24616415,224.49,224.44,7.55]
[1759395124437,7.86,224.46,224.44,7.55]
[1759395124629,7.86,224.46,224.4,4.0085]
[1759395124830,7.86,224.46,224.4,11.5585]
[1759395125026,2.14302861,224.5,224.4,7.55]
[1759395125226,7.86,224.48,224.4,7.55]
[1759395125426,10.99571182,224.48,224.4,7.55]
[1759395125730,15.83621833,224.48,224.4,7.55]
[1759395125926,11.8676,224.46,224.4,7.55]
[1759395126137,7.86,224.44,224.38,4.0089]
[1759395126631,7.86,224.44,224.39,7.55]
[1759395127027,7.86,224.44,224.38,11.5589]
[1759395128035,11.868,224.44,224.38,11.5589]
[1759395129236,3.15165016,224.43,224.38,11.5589]
[1759395129537,7.86,224.42,224.39,7.55]
[1759395131236,11.01165016,224.42,224.39,7.55]
[1759395132241,7.86,224.42,224.39,7.55]
[1759395133244,3.15750511,224.41,224.39,7.55]
[1759395133544,7.86,224.4,224.37,7.55]
[1759395133747,7.86,224.4,224.33,2.14302861]
[1759395134045,3.15757088,224.41,224.34,7.55]
[1759395134246,1.11350867,224.42,224.34,7.55]
[1759395134442,3.15824669,224.41,224.34,7.55]
[1759395134644,1.11350867,224.44,224.34,7.55]
[1759395134846,4.27171993,224.43,224.34,7.55]
[1759395135043,4.27171993,224.42,224.34,7.55]
[1759395135347,3.15821126,224.41,224.34,7.55]
[1759395135548,1.11349628,224.43,224.37,7.55]
[1759395135846,4.27257766,224.42,224.36,2.14302861]
[1759395136047,3.74038076,224.44,224.36,2.14302861]
[1759395136048,3.15908138,224.41,224.37,7.55]
[1759395136248,1.11349628,224.43,224.37,7.55]
[1759395136449,4.27333492,224.42,224.39,4.0087]
[1759395136642,3.15983864,224.41,224.4,7.55]
[1759395137343,4.27333492,224.41,224.4,7.55]
[1759395137548,4.27333492,224.41,224.37,4.0091]
[1759395137747,3.15983864,224.4,224.37,4.0091]
[1759395137948,8.97350248,224.42,224.38,7.55]
[1759395138142,4.27420656,224.41,224.37,4.0091]
[1759395138350,3.16070408,224.4,224.38,7.55]
[1759395138645,1.11350248,224.41,224.37,4.0091]
[1759395138842,3.16138568,224.4,224.38,7.55]
[1759395139147,8.97350248,224.41,224.38,7.55]
[1759395139444,3.16218522,224.4,224.38,7.55]
[1759395139650,3.16218522,224.39,224.38,7.55]
[1759395141145,3.16218522,224.39,224.36,4.0092]
[1759395141343,7.86,224.4,224.36,11.5592]
[1759395141550,12.13767294,224.39,224.36,11.5592]
[1759395141745,11.02415681,224.38,224.34,4.0096]
[1759395141946,3.16439956,224.37,224.35,7.55]
[1759395142145,7.83,224.38,224.35,7.55]
[1759395142448,3.16478305,224.37,224.35,7.55]
[1759395142650,7.83,224.38,224.35,7.55]
[1759395142948,3.16437114,224.37,224.35,7.55]
[1759395143249,3.16451096,224.36,224.35,7.55]
[1759395143444,3.16451096,224.36,224.32,11.6]
[1759395143650,3.16406747,224.35,224.32,4.01]
[1759395143851,7.37,224.37,224.32,4.01]
[1759395144149,4.27776168,224.36,224.33,7.29]
[1759395144350,3.16406747,224.35,224.31,7.29]
[1759395144651,11.11636563,224.37,224.3,7.29]
[1759395144851,4.27694367,224.36,224.32,4.0099]
[1759395145048,4.0087,224.4,224.33,7.29]
[1759395145250,8.02313261,224.39,224.33,7.29]
[1759395145450,4.27684788,224.38,224.29,7.29]
[1759395145648,4.27684788,224.37,224.33,7.29]
[1759395145947,3.16314456,224.36,224.33,7.29]
[1759395146148,1.11370952,224.38,224.33,7.29]
[1759395146449,4.27638899,224.37,224.32,2.14302861]
[1759395146647,3.16267947,224.36,224.35,7.29]
[1759395149349,1.11370952,224.37,224.35,7.29]
[1759395149554,3.74628473,224.39,224.35,7.29]
[1759395149555,1.11370952,224.38,224.35,7.29]
[1759395149855,4.27455982,224.37,224.35,7.29]
[1759395150051,7.37,224.38,224.35,7.29]
[1759395150251,4.85999425,224.39,224.33,7.29]
[1759395150252,11.64455982,224.37,224.33,7.29]
[1759395150451,10.5308503,224.36,224.33,7.29]
[1759395150656,7.37,224.36,224.33,7.29]
[1759395152453,7.37,224.36,224.33,4.0097]
[1759395152647,1.11372192,224.37,224.34,7.29]
[1759395152948,3.16004136,224.36,224.34,7.29]
[1759395153150,8.48372192,224.37,224.34,7.29]
[1759395153354,3.16003585,224.36,224.34,7.29]
[1759395153554,7.37,224.36,224.34,7.29]
[1759395153755,8.48372192,224.37,224.34,7.29]
[1759395153957,3.15978677,224.36,224.34,7.29]
[1759395154154,8.48372192,224.37,224.34,7.29]
[1759395154355,3.15978677,224.36,224.34,7.29]
[1759395154556,8.48372192,224.37,224.33,4.0097]
[1759395154756,3.15960456,224.36,224.33,4.0097]
[1759395154957,1.11372192,224.37,224.33,4.0097]
[1759395155159,3.15960456,224.36,224.33,4.0097]
[1759395155455,1.11372192,224.37,224.33,4.0097]
[1759395155761,4.0089,224.39,224.33,4.0097]
[1759395155762,3.15946934,224.36,224.33,4.0097]
[1759395155963,4.27317353,224.37,224.34,7.29]
[1759395156160,1.11372192,224.38,224.3,7.29]
[1759395156366,4.85338555,224.4,224.3,7.29]
[1759395156567,4.26843405,224.39,224.3,7.29]
[1759395156863,3.15476327,224.38,224.32,2.14302861]
[1759395157164,1.11362923,224.4,224.33,7.29]
[1759395157363,4.26820603,224.39,224.33,7.29]
[1759395157658,11.3785,224.41,224.35,4.0093]
[1759395157659,3.1545768,224.38,224.35,4.0093]
[1759395157864,8.48362923,224.39,224.36,7.29]
[1759395158059,3.15464655,224.38,224.36,7.29]
[1759395158262,8.48362923,224.39,224.36,7.29]
[1759395158564,3.15464676,224.38,224.36,7.29]
[1759395158765,8.48362923,224.39,224.36,7.29]
[1759395158966,3.15464676,224.38,224.36,7.29]
[1759395159168,8.48362923,224.39,224.36,7.29]
[1759395159467,3.15468528,224.38,224.36,7.29]
[1759395159664,8.48362923,224.39,224.36,7.29]
[1759395159864,3.15476636,224.38,224.36,7.29]
[1759395160066,8.48362923,224.39,224.36,7.29]
[1759395160264,3.15476636,224.38,224.36,7.29]
[1759395160465,8.48362923,224.39,224.36,7.29]
[1759395160666,3.15482182,224.38,224.36,7.29]
[1759395160858,8.48362923,224.39,224.36,7.29]
[1759395161057,3.15482182,224.38,224.36,7.29]
[1759395161259,1.11362923,224.39,224.36,7.29]
[1759395161463,3.15498017,224.38,224.35,4.0093]
[1759395161664,4.2686094,224.39,224.36,7.29]
[1759395161864,8.48362923,224.4,224.36,7.29]
[1759395162069,4.26851646,224.39,224.36,7.29]
[1759395162268,3.15488723,224.38,224.36,7.29]
[1759395162470,7.37,224.39,224.36,7.29]
[1759395162668,3.15516123,224.38,224.36,7.29]
[1759395162869,7.37,224.39,224.36,7.29]
[1759395163168,3.15516123,224.38,224.36,7.29]
[1759395163369,8.48363384,224.39,224.36,7.29]
[1759395163569,3.15548845,224.38,224.36,7.29]
[1759395163770,8.48363384,224.39,224.36,7.29]
[1759395163970,3.15548845,224.38,224.36,7.29]
[1759395164268,7.37,224.44,224.36,7.29]
[1759395164571,4.26893276,224.43,224.36,7.29]
[1759395164771,4.26893276,224.42,224.36,7.29]
[1759395164971,3.15545204,224.41,224.35,2.14302861]
[1759395165163,1.11348072,224.42,224.36,7.29]
[1759395165369,3.15540848,224.41,224.35,2.14302861]
[1759395165564,4.85442147,224.43,224.39,4.0087]
[1759395165766,4.85442147,224.43,224.36,7.29]
[1759395165767,3.15545426,224.42,224.36,7.29]
[1759395165968,3.15545426,224.41,224.36,7.29]
[1759395166175,7.37,224.44,224.39,7.29]
[1759395166471,11.63886586,224.43,224.39,7.29]
[1759395166668,3.15541778,224.42,224.39,7.29]
[1759395166869,3.15541778,224.41,224.38,4.0089]
[1759395167080,11.3778,224.45,224.39,7.29]
[1759395167269,7.37,224.43,224.4,7.29]
[1759395167472,3.1557867,224.42,224.36,7.29]
[1759395167678,4.85520304,224.46,224.39,7.29]
[1759395167878,4.2694632,224.45,224.39,7.29]
[1759395168072,4.2694632,224.44,224.38,2.14302861]
[1759395168273,3.15602435,224.43,224.42,5.37933061]
[1759395168481,3.15602435,224.43,224.42,12.66933061]
[1759395175578,7.37,224.47,224.45,7.88]
[1759395175778,3.15452255,224.46,224.45,7.88]
[1759395179383,7.37,224.47,224.45,7.88]
[1759395179883,7.37,224.47,224.44,4.0079]
[1759395180186,7.37,224.47,224.45,7.88]
[1759395180485,10.52185281,224.47,224.45,7.88]
[1759395180686,1.11323362,224.48,224.45,13.25883061]
[1759395180881,62.3075,224.58,224.46,7.88]
[1759395180882,3.15171497,224.47,224.46,7.88]
[1759395181086,11.71494859,224.49,224.46,7.88]
[1759395181286,3.15171497,224.48,224.46,7.88]
[1759395181488,7.45,224.48,224.46,7.88]
[1759395182588,7.45,224.48,224.46,11.8875]
[1759395182787,10.6005031,224.48,224.46,4.0075]
[1759395182992,7.45,224.48,224.46,4.0075]
[1759395183191,10.59986665,224.48,224.46,4.0075]
[1759395183393,7.45,224.48,224.46,4.0075]
[1759395183791,7.45,224.48,224.46,11.8875]
[1759395183996,10.59969288,224.48,224.46,11.8875]
[1759395184197,7.45,224.48,224.46,11.8875]
[1759395193898,7.45,224.5,224.47,4.0072]
[1759395194094,3.14208702,224.51,224.48,1.37123061]
[1759395194294,7.45,224.53,224.48,1.37123061]
[1759395194295,3.14208702,224.52,224.49,7.88]
[1759395194494,10.59208702,224.53,224.48,1.37123061]
[1759395194695,3.14208702,224.52,224.48,1.37123061]
[1759395194894,7.45,224.55,224.52,11.8863]
[1759395195101,11.70431187,224.55,224.52,11.8863]
[1759395195289,3.14131151,224.54,224.52,11.8863]
[1759395195494,7.45,224.54,224.52,7.88]
[1759395196199,10.59131151,224.54,224.52,7.88]
[1759395196397,7.45,224.54,224.52,7.88]
[1759395197100,10.5906647,224.54,224.52,7.88]
[1759395197299,7.45,224.54,224.52,7.88]
[1759395198101,10.59054473,224.54,224.52,7.88]
[1759395198302,7.45,224.54,224.52,7.88]
[1759395199601,3.14054933,224.55,224.53,7.88]
[1759395199794,10.59054933,224.55,224.53,7.88]
[1759395200104,3.14054933,224.54,224.53,7.88]
[1759395200401,7.45,224.55,224.53,7.88]
[1759395200402,10.59054933,224.55,224.53,7.88]
[1759395201298,10.59054933,224.55,224.52,11.8863]
[1759395202102,7.45,224.55,224.52,11.8863]
[1759395203001,4.25342163,224.56,224.52,11.8863]
[1759395203203,7.82,224.55,224.52,7.88]
[1759395203906,10.96042186,224.55,224.47,1.37123061]
[1759395204204,7.82,224.53,224.47,1.37123061]
[1759395205701,4.25342163,224.54,224.48,4.007]
[1759395205901,3.14042186,224.54,224.48,4.007]
[1759395206302,3.14042186,224.53,224.49,7.92]
[1759395206501,7.82,224.52,224.49,7.92]
[1759395206705,7.82,224.52,224.5,7.92]
[1759395209507,10.96042186,224.52,224.5,7.92]
[1759395209708,7.82,224.52,224.5,7.92]
[1759395210207,10.96466161,224.52,224.5,7.92]
[1759395210405,7.82,224.52,224.5,7.92]
[1759395210807,10.96505457,224.52,224.5,7.92]
[1759395210997,7.82,224.52,224.5,7.92]
[1759395211198,7.82,224.52,224.5,11.9267]
[1759395211407,10.96504658,224.52,224.5,11.9267]
[1759395211607,7.82,224.52,224.5,11.9267]
[1759395212604,10.96541508,224.52,224.5,11.9267]
[1759395212807,7.82,224.52,224.5,11.9267]
[1759395213309,10.96587141,224.52,224.5,11.9267]
[1759395213509,7.82,224.52,224.5,11.9267]
[1759395213906,10.96609595,224.52,224.5,11.9267]
[1759395214206,7.82,224.52,224.5,11.9267]
[1759395220410,7.82,224.52,224.5,7.92]
[1759395226521,7.82,224.52,224.5,11.9267]
[1759395229322,3.14848267,224.51,224.5,11.9267]
[1759395229522,7.82,224.52,224.5,11.9267]
[1759395231125,3.14905817,224.51,224.5,11.9267]
[1759395236227,4.26197565,224.51,224.5,11.9267]
[1759395241835,3.72575349,224.54,224.53,4.0064]
[1759395242135,7.99221917,224.54,224.53,11.9064]
[1759395242339,4.26646568,224.54,224.53,11.9064]
[1759395245540,3.72328475,224.58,224.56,11.9058]
[1759395245745,7.98741888,224.57,224.56,11.9058]
[1759395245945,15.37741888,224.57,224.5,7.9]
[1759395246144,7.98732101,224.56,224.5,7.9]
[1759395246443,4.26413413,224.55,224.54,7.9]
[1759395260659,3.15141866,224.55,224.54,7.9]
[1759395261761,7.39,224.63,224.54,7.9]
[1759395261956,7.98833018,224.62,224.54,7.9]
[1759395262155,7.98832782,224.61,224.54,7.9]
[1759395262361,4.2678113,224.6,224.54,7.9]
[1759395262561,3.15522897,224.59,224.57,4.0056]
[1759395262764,1.11255469,224.6,224.58,7.67]
[1759395262958,3.15426898,224.59,224.58,7.67]
[1759395265464,7.83,224.6,224.58,7.67]
[1759395268164,1.11255469,224.61,224.57,4.0056]
[1759395268365,3.15124014,224.6,224.58,7.83]
[1759395268566,1.11255469,224.61,224.57,4.0056]
[1759395268763,3.15087396,224.6,224.59,7.83]
[1759395272976,3.15001226,224.6,224.59,7.83]
[1759395275670,7.83,224.59,224.56,7.83]
[1759395275875,1.11263392,224.6,224.56,7.83]
[1759395276176,7.83,224.58,224.56,7.83]
[1759395277066,7.83,224.61,224.56,7.83]
[1759395277275,12.09069355,224.6,224.55,4.0059]
[1759395277477,12.09069355,224.59,224.56,7.83]
[1759395277774,3.14805846,224.58,224.56,7.83]
[1759395278176,7.83,224.59,224.56,7.83]
[1759395278474,3.14830288,224.58,224.56,7.83]
[1759395278675,8.94263509,224.59,224.55,4.0059]
[1759395278876,3.14838921,224.58,224.56,7.83]
[1759395279176,7.83,224.59,224.56,7.83]
[1759395279472,3.14858171,224.58,224.56,7.83]
[1759395279677,7.83,224.59,224.56,7.83]
[1759395279877,3.14867129,224.58,224.56,7.83]
[1759395280176,7.83,224.59,224.56,7.83]
[1759395280375,3.14889759,224.58,224.56,7.83]
[1759395280577,7.83,224.59,224.55,4.0059]
[1759395280773,3.14898952,224.58,224.56,7.83]
[1759395280966,7.83,224.59,224.56,7.83]
[1759395281168,3.14898952,224.58,224.56,7.83]
[1759395281370,7.83,224.59,224.56,7.83]
[1759395281578,3.14934721,224.58,224.56,7.83]
[1759395281775,7.83,224.59,224.56,7.83]
[1759395281976,3.14934721,224.58,224.56,7.83]
[1759395282176,7.83,224.59,224.56,7.83]
[1759395282379,3.14965467,224.58,224.56,7.83]
[1759395282678,7.83,224.59,224.56,7.83]
[1759395282980,3.14974854,224.58,224.56,7.83]
[1759395283178,7.83,224.59,224.56,7.83]
[1759395283473,3.15010565,224.58,224.56,7.83]
[1759395283679,7.83,224.59,224.56,7.83]
[1759395283981,10.98019899,224.58,224.56,7.83]
[1759395284181,7.83,224.58,224.56,7.83]
[1759395284383,1.11263509,224.59,224.55,4.0059]
[1759395284583,3.15070517,224.58,224.56,7.83]
[1759395284784,7.83,224.59,224.56,7.83]
[1759395285084,3.15070349,224.58,224.56,7.83]
[1759395285280,7.83,224.59,224.56,7.83]
[1759395285483,3.15079429,224.58,224.56,7.83]
[1759395285783,7.83,224.59,224.56,7.83]
[1759395286082,3.15079429,224.58,224.56,7.83]
[1759395286281,7.83,224.59,224.56,7.83]
[1759395286481,3.15136388,224.58,224.56,7.83]
[1759395286682,7.83,224.59,224.56,7.83]
[1759395286880,3.15136388,224.58,224.56,7.83]
[1759395287082,7.83,224.59,224.56,7.83]
[1759395287282,3.15136388,224.58,224.56,7.83]
[1759395287479,3.15136388,224.57,224.56,7.83]
[1759395291190,7.83,224.59,224.56,7.83]
[1759395291389,3.15202356,224.58,224.56,7.83]
[1759395291590,7.83,224.59,224.56,7.83]
[1759395291791,3.15212036,224.58,224.56,7.83]
[1759395291990,7.83,224.59,224.56,7.83]
[1759395292291,3.15212036,224.58,224.56,7.83]
[1759395292482,7.83,224.59,224.56,7.83]
[1759395292683,3.1522266,224.58,224.52,4.0064]
[1759395292889,12.09496559,224.57,224.51,7.83]
[1759395293085,7.83,224.55,224.51,7.83]
[1759395293287,7.83,224.59,224.51,7.83]
[1759395293481,7.83,224.57,224.51,7.83]
[1759395293687,12.09554272,224.56,224.5,9.19974247]
[1759395293892,4.26554272,224.55,224.51,4.0067]
[1759395294094,3.15276518,224.54,224.51,4.0067]
[1759395294294,7.46,224.55,224.52,7.8]
[1759395294490,3.15271178,224.54,224.51,4.0067]
[1759395294693,7.46,224.55,224.52,7.8]
[1759395294989,3.15271178,224.54,224.51,4.0067]
[1759395295194,7.46,224.55,224.51,4.0067]
[1759395295490,3.15271178,224.54,224.51,4.0067]
[1759395295685,7.46,224.55,224.52,7.8]
[1759395295890,3.15264613,224.54,224.52,7.8]
[1759395296094,7.46,224.55,224.52,7.8]
[1759395296296,3.15264445,224.54,224.53,7.8]
[1759395297799,3.15264445,224.54,224.52,11.8065]
[1759395297995,8.57278396,224.55,224.52,11.8065]
[1759395298194,3.15249339,224.54,224.53,7.8]
[1759395300906,3.15249339,224.54,224.51,7.8]
[1759395301107,3.15256598,224.53,224.5,4.0068]
[1759395301402,1.11285998,224.54,224.5,4.0068]
[1759395301602,3.15282151,224.53,224.5,5.37654247]
[1759395301903,8.57286734,224.54,224.51,7.8]
[1759395302107,3.15271102,224.53,224.51,7.8]
[1759395302307,7.46,224.54,224.51,7.8]
[1759395302507,3.15244201,224.53,224.51,7.8]
[1759395302711,7.46,224.54,224.51,7.8]
[1759395303007,3.15244201,224.53,224.51,7.8]
[1759395303207,7.46,224.54,224.51,7.8]
[1759395303404,10.61202139,224.53,224.51,7.8]
[1759395303611,3.15202139,224.52,224.51,7.8]
[1759395306911,8.82974247,224.58,224.51,7.8]
[1759395307112,7.98313461,224.57,224.51,7.8]
[1759395307408,11.72282678,224.56,224.51,7.8]
[1759395307611,4.26282678,224.55,224.5,1.36974247]
[1759395307810,3.14996946,224.54,224.51,7.8]
[1759395308111,1.11285732,224.55,224.51,7.8]
[1759395308410,3.149672,224.54,224.51,7.8]
[1759395308611,7.46,224.57,224.53,11.8063]
[1759395308809,11.72253231,224.56,224.53,11.8063]
[1759395309108,4.26253231,224.55,224.53,11.8063]
[1759395309307,3.14967734,224.54,224.53,11.8063]
[1759395312312,10.60967734,224.54,224.51,7.8]
[1759395312510,7.46,224.57,224.51,7.8]
[1759395312806,7.46,224.55,224.5,1.36974247]
[1759395313009,3.14963312,224.54,224.51,7.8]
[1759395313211,7.46,224.55,224.5,1.36974247]
[1759395313410,3.14969858,224.54,224.5,1.36974247]
[1759395313711,7.46,224.55,224.52,11.8065]
[1759395314011,3.14969858,224.54,224.52,11.8065]
[1759395314213,7.46,224.55,224.52,11.8065]
[1759395314413,3.1497964,224.54,224.52,11.8065]
[1759395314606,7.46,224.55,224.53,7.8]
[1759395314805,3.1497964,224.54,224.53,7.8]
[1759395322614,7.64,224.61,224.53,7.28]
[1759395322913,8.00254493,224.6,224.55,1.36974247]
[1759395323216,4.26356841,224.59,224.56,7.28]
[1759395323418,3.15086948,224.58,224.57,11.2855]
[1759395324613,4.85163111,224.62,224.59,4.0053]
[1759395324913,8.00220737,224.61,224.6,7.9]
[1759395325118,4.26323085,224.61,224.6,7.9]
[1759395325416,3.15057626,224.61,224.6,7.9]
[1759395326317,8.47249372,224.64,224.61,4.005]
[1759395326516,4.26179419,224.63,224.62,7.9]
[1759395326713,3.14930047,224.63,224.62,7.9]
[1759395326921,1.11249372,224.65,224.63,4.0046]
[1759395327111,3.14897153,224.64,224.63,11.9046]
[1759395327315,3.14897153,224.64,224.63,13.27434247]
[1759395327522,3.14897153,224.65,224.63,13.27434247]
[1759395327814,8.47227176,224.67,224.64,7.9]
[1759395328021,4.25971863,224.66,224.64,7.9]
[1759395328321,8.47227176,224.67,224.64,7.9]
[1759395328515,3.14605658,224.66,224.64,7.9]
[1759395328820,8.47227176,224.67,224.64,7.9]
[1759395329021,3.1460103,224.66,224.64,7.9]
[1759395329721,3.1460103,224.66,224.63,5.37434247]
[1759395329912,4.71578405,224.68,224.64,7.9]
[1759395329913,3.1460103,224.67,224.64,7.9]
[1759395330119,3.1460103,224.67,224.63,5.37434247]
[1759395330318,3.1460103,224.67,224.64,7.9]
[1759395330720,3.1460103,224.67,224.63,5.37434247]
[1759395330920,3.1460103,224.67,224.64,7.9]
[1759395331124,3.1460103,224.67,224.63,5.37434247]
[1759395331523,3.1460103,224.67,224.64,7.9]
[1759395331722,3.1460103,224.67,224.63,5.37434247]
[1759395332224,8.97406611,224.68,224.64,7.9]
[1759395332420,4.71578405,224.68,224.64,7.9]
[1759395332623,12.07578405,224.68,224.64,7.9]